[Event "Satka Autumn 2018"]
[Site "Satka"]
[Date "2018.09.15"]
[Round "5"]
[White "Svetlova, Ksenia"]
[Black "Kilina, Elizaveta"]
[Result "1-0"]
[ECO "C50"]
[WhiteElo "1696"]
[BlackElo "1226"]
[Annotator "NA"]
[PlyCount "74"]
[EventDate "2018.09.11"]
[EventType "swiss"]
[EventCountry "RUS"]
[SourceTitle "playchess.com"]
[Source "ChessBase"]
[SourceQuality "1"]
[TimeControl "40/5400+30:1800+30"]

1. e4 {[%emt 0:00:00]} e5 {[%emt 0:00:00]} 2. Nf3 {[%emt 0:00:00]} Nc6 {[%emt 0:00:00]} 3. d4 {[%emt 0:00:00]} exd4 {[%emt 0:00:00]} 4. Bc4 {[%emt 0:00:00]} Be7 {[%emt 0:03:29]} 5. c3 {[%emt 0:00:19]} Nf6 {[%emt 0:02:23]} 6. e5 {[%emt 0:00:35]} Ne4 {[%emt 0:01:48]} 7. Bd5 {[%emt 0:05:16]} Ng5 {[%emt 0:10:20]} 8. Nxg5 {[%emt 0:01:25]} Bxg5 {[%emt 0:00:13]} 9. Qh5 {[%emt 0:00:07]} Qe7 {[%emt 0:28:26]} 10. Qxg5 {[%emt 0:00:30]} f6 {[%emt 0:01:04]} 11. Qg3 {[%emt 0:00:51]} d6 {[%emt 0:20:27]} 12. O-O {[%emt 0:00:17]} dxe5 {[%emt 0:00:06]} 13. Bxc6+ {[%emt 0:00:16]} bxc6 {[%emt 0:00:10]} 14. cxd4 {[%emt 0:00:02]} exd4 {[%emt 0:02:12]} 15. Bf4 {[%emt 0:00:05]} O-O {[%emt 0:02:59]} 16. Nd2 {[%emt 0:00:54]} Re8 {[%emt 0:03:51]} 17. h3 {[%emt 0:00:19]} Qb4 {[%emt 0:05:39]} 18. Qb3+ {[%emt 0:00:35]} Qxb3 {[%emt 0:00:56]} 19. Nxb3 {[%emt 0:00:05]} Re4 {[%emt 0:05:21]} 20. Bxc7 {[%emt 0:00:34]} Bf5 {[%emt 0:02:40]} 21. f3 {[%emt 0:01:02]} Re7 {[%emt 0:04:54]} 22. Nxd4 {[%emt 0:00:05]} Bd3 {[%emt 0:02:53]} 23. Rfd1 {[%emt 0:00:03]} Rd7 {[%emt 0:00:39]} 24. Rxd3 {[%emt 0:00:27]} c5 {[%emt 0:00:12]} 25. Bg3 {[%emt 0:00:55]} cxd4 {[%emt 0:00:21]} 26. Rad1 {[%emt 0:00:04]} Rad8 {[%emt 0:00:48]} 27. Bf2 {[%emt 0:00:07]} Kf7 {[%emt 0:00:29]} 28. Rxd4 {[%emt 0:00:08]} Rxd4 {[%emt 0:00:32]} 29. Rxd4 {[%emt 0:00:08]} Rxd4 {[%emt 0:00:12]} 30. Bxd4 {[%emt 0:00:04]} a6 {[%emt 0:00:26]} 31. b4 {[%emt 0:00:12]} Ke6 {[%emt 0:00:07]} 32. Kf2 {[%emt 0:00:26]} Kd5 {[%emt 0:00:17]} 33. Bc5 {[%emt 0:00:11]} a5 {[%emt 0:01:51]} 34. a3 {[%emt 0:00:04]} g5 {[%emt 0:00:17]} 35. Be7 {[%emt 0:00:29]} axb4 {[%emt 0:00:31]} 36. axb4 {[%emt 0:00:03]} Kc4 {[%emt 0:00:35]} 37. Bxf6 {[%emt 0:00:05]} Kd5 1-0

[Event "Satka Autumn 2018"]
[Site "Satka"]
[Date "2018.09.15"]
[Round "5"]
[White "Telelyukhina, Elizaveta"]
[Black "Mukhina, Jana"]
[Result "0-1"]
[ECO "B32"]
[WhiteElo "1403"]
[BlackElo "2072"]
[Annotator "NA"]
[PlyCount "58"]
[EventDate "2018.09.11"]
[EventType "swiss"]
[EventCountry "RUS"]
[SourceTitle "playchess.com"]
[Source "ChessBase"]
[SourceQuality "1"]
[TimeControl "40/5400+30:1800+30"]

1. e4 {[%emt 0:00:00]} c5 {[%emt 0:00:00]} 2. Nf3 {[%emt 0:00:48]} Nc6 {[%emt 0:00:00]} 3. d4 {[%emt 0:00:14]} cxd4 {[%emt 0:00:00]} 4. Nxd4 {[%emt 0:00:21]} g6 {[%emt 0:00:00]} 5. c3 {[%emt 0:00:31]} Bg7 {[%emt 0:00:13]} 6. Be3 {[%emt 0:00:12]} Nf6 {[%emt 0:00:44]} 7. Be2 {[%emt 0:00:11] B34: Sicilian: Accelerated Dragon with 5 Nc3: sidelines} (7. f3 O-O 8. Bb5 Ne5 9. Nd2 d5 10. Qc2 a6 11. Be2 dxe4 12. Nxe4 Nd5 13. Bd2 Nb4 14. Qb1 Nd5 15. O-O Qb6 {0-1 (56) Pandurevic,M (2216)-Jelcic,M (2181) Jahorina 2018}) 7... Nxe4 {[%emt 0:01:29]} 8. O-O {[%emt 0:00:50]} O-O {[%emt 0:01:53]} 9. Na3 $146 {[%emt 0:00:41]} ({Predecessor:} 9. f3 Nf6 10. Kh1 Nd5 11. Bf2 Nf4 12. Bb5 a6 13. Ba4 Nxd4 14. Bxd4 Bxd4 15. Qxd4 {½-½ (72) Szucs,J-Csuta,A (1692) Hungary 2013}) 9... d5 {[%emt 0:02:55]} 10. Nac2 {[%emt 0:01:18]} e5 {[%emt 0:01:09]} 11. Nxc6 {[%emt 0:03:15]} bxc6 {[%emt 0:03:48]} 12. f3 {[%emt 0:01:19]} Nf6 {[%emt 0:03:49]} 13. f4 {[%emt 0:02:45]} exf4 {[%emt 0:04:30]} 14. Bxf4 {[%emt 0:00:10]} Re8 {[%emt 0:03:49]} 15. Nb4 {[%emt 0:04:05]} Qb6+ {[%emt 0:01:25]} 16. Kh1 {[%emt 0:02:43]} Ne4 {[%emt 0:04:17]} 17. Nd3 {[%emt 0:03:45]} Ba6 {[%emt 0:00:33]} 18. Qc2 {[%emt 0:02:25]} Re7 {[%emt 0:02:46]} 19. a4 {[%emt 0:02:33]} Rae8 {[%emt 0:01:51]} 20. a5 {[%emt 0:00:18]} Qb7 {[%emt 0:01:05]} 21. Bf3 {[%emt 0:00:36]} Bxd3 {[%emt 0:00:26]} 22. Qxd3 $19 {[%emt 0:00:24]} Qxb2 {[%emt 0:00:48]} 23. Bxe4 {[%emt 0:01:10]} Rxe4 {[%emt 0:00:24]} 24. Bd2 {[%emt 0:01:04]} Re2 {[%emt 0:05:25]} 25. Rad1 {[%emt 0:00:20]} Qa3 {[%emt 0:04:21]} 26. Ra1 {[%emt 0:00:57]} Qe7 {[%emt 0:03:25]} 27. Rad1 {[%emt 0:01:24]} Qh4 {[%emt 0:06:03]} 28. Qf3 {[%emt 0:02:23]} f5 {[%emt 0:01:52]} 29. a6 {[%emt 0:02:46]} Qc4 {[%emt 0:03:14]} 0-1

[Event "Satka Autumn 2018"]
[Site "Satka"]
[Date "2018.09.16"]
[Round "6"]
[White "Kovanova, Baira"]
[Black "Mironenko, Galina"]
[Result "1-0"]
[ECO "C07"]
[WhiteElo "2363"]
[BlackElo "2021"]
[Annotator "NA"]
[PlyCount "135"]
[EventDate "2018.09.11"]
[EventType "swiss"]
[EventCountry "RUS"]
[SourceTitle "playchess.com"]
[Source "ChessBase"]
[SourceQuality "1"]
[TimeControl "40/5400+30:1800+30"]

{[%evp 8,135,21,24,19,26,62,43,47,8,15,12,13,12,15,2,7,-14,0,-39,32767,32767,32767,32767,1,7,32767,32767,32767,32767,32767,0,32767,32767,32767,0,0,32767,32767,32767,32767,32767,-10,-16,-12,-45,32767,32767,32767,32767,32767,32767,32767,32767,32767,32767,32767,32767,32767,32767,32767,32767,32767,32767,32767,32767,32767,32767,32767,0,48,34,43,39,44,33,45,33,24,32767,32767,32767,32767,24,11,25,29,8,56,25,361,359,671,730,29986,531,587,576,32767,1127,1433,1325,32767,32767,32767,32767,32767,32767,32767,32767,32767,32767,32767,32767,32767,32767,32767,32767,32767,32767,32767,32767,32767,393,29996,454,29997,454,29998,29999]} 1. e4 {[%emt 0:00:00]} e6 {[%emt 0:00:00]} 2. d4 {[%emt 0:00:00]} d5 {[%emt 0:00:00]} 3. Nd2 {[%emt 0:01:16]} c5 {[%emt 0:02:28]} 4. Ngf3 {[%emt 0:01:53]} cxd4 {[%emt 0:03:53]} 5. exd5 {[%emt 0:03:53] C07: French Tarrasch: 3...c5, 4 Ngf3 and 4 exd5 Qxd5} exd5 {[%emt 0:06:00]} (5... Qxd5 6. Bc4 Qd6 7. O-O Nf6 8. Nb3 Nc6 9. Nbxd4 Nxd4 10. Nxd4 a6 11. Re1 Qc7 12. Qe2 Bc5 13. c3 O-O 14. Bg5 b5 15. Bd3 Nd5 16. Qh5 g6 17. Qh4 Bb7 18. a4 bxa4 19. Rxa4 Rfe8 20. Nf3 {1-0 (29) Wei,Y (2729)-So,W (2780) chess.com INT 2018}) 6. Nxd4 {[%emt 0:01:00] LiveBook: 4 Games} Bd6 {[%emt 0:06:05]} 7. Bb5+ {[%emt 0:04:54]} Bd7 {[%emt 0:01:40]} 8. Bxd7+ $146 {[%emt 0:07:06]} ({Predecessor:} 8. O-O Ne7 9. N2f3 Nbc6 10. c3 O-O 11. Bd3 Nxd4 12. cxd4 Bf5 {Freedman,W-Zalys,I corr 1949}) 8... Qxd7 {[%emt 0:00:30]} 9. Qe2+ {[%emt 0:07:28]} Ne7 {[%emt 0:04:33]} 10. Nb5 {[%emt 0:02:09]} Nbc6 {[%emt 0:04:13]} 11. Nb3 {[%emt 0:04:05]} O-O {[%emt 0:03:29]} 12. O-O {[%emt 0:00:54]} Rfe8 {[%emt 0:07:49]} 13. c3 {[%emt 0:05:27]} b6 {[%emt 0:03:19]} 14. Nxd6 {[%emt 0:06:02]} Qxd6 {[%emt 0:00:08]} 15. Re1 {[%emt 0:00:45]} Qd7 {[%emt 0:08:30]} 16. Bf4 {[%emt 0:06:35]} Ng6 {[%emt 0:02:40]} 17. Be3 {[%emt 0:04:01]} Nge5 {[%emt 0:03:34]} 18. Rad1 {[%emt 0:02:02]} Rad8 {[%emt 0:01:17]} 19. Qb5 {[%emt 0:10:19]} Qg4 {[%emt 0:04:47]} 20. h3 {[%emt 0:03:30]} Qc4 {[%emt 0:06:52]} 21. a4 {[%emt 0:02:16]} a6 {[%emt 0:07:21]} 22. Qxb6 {[%emt 0:04:57]} Rb8 {[%emt 0:03:12]} 23. Nd2 {[%emt 0:01:43]} Qxa4 {[%emt 0:01:56]} 24. Qc7 {[%emt 0:01:54]} Re7 {[%emt 0:09:04]} (24... Qc2 $17 25. Rb1 Red8) 25. Qd6 {[%emt 0:01:40]} Rd7 {[%emt 0:01:26]} 26. Ra1 {[%emt 0:02:04]} Qb5 {[%emt 0:03:34]} 27. Qa3 {[%emt 0:00:05]} Nd3 {[%emt 0:00:24]} 28. Reb1 {[%emt 0:01:07]} a5 {[%emt 0:00:38]} 29. b3 {[%emt 0:03:22]} h6 {[%emt 0:01:32]} 30. Nf3 {[%emt 0:00:42]} Qb7 {[%emt 0:02:06]} 31. Rd1 {[%emt 0:01:07]} Nde5 {[%emt 0:01:07]} 32. Nxe5 {[%emt 0:00:45]} Nxe5 {[%emt 0:00:03]} 33. Rab1 {[%emt 0:00:49]} Nc6 {[%emt 0:00:25]} 34. Qa4 {[%emt 0:01:25]} Ra8 {[%emt 0:00:59]} 35. Rd2 {[%emt 0:00:14]} Rb8 {[%emt 0:00:18]} 36. Rbd1 {[%emt 0:02:39]} Rbd8 {[%emt 0:00:23]} 37. Qa3 {[%emt 0:00:50]} Ne5 {[%emt 0:00:49]} 38. Qa4 {[%emt 0:02:18]} Nc6 {[%emt 0:00:16]} 39. Bc5 {[%emt 0:01:17]} Ne5 {[%emt 0:00:36]} 40. Re1 {[%emt 0:00:00]} Qc7 {[%emt 0:00:00]} 41. Bd4 {[%emt 0:07:49]} Nc6 {[%emt 0:07:46]} 42. Rd3 {[%emt 0:07:15]} Re7 {[%emt 0:04:06]} 43. Rde3 {[%emt 0:03:20]} Rxe3 {[%emt 0:05:40]} 44. Rxe3 {[%emt 0:00:07]} f6 {[%emt 0:00:36]} 45. Bc5 {[%emt 0:05:06]} Ne5 {[%emt 0:02:59]} 46. Qd4 {[%emt 0:01:00]} Qb7 {[%emt 0:02:58]} 47. Rg3 {[%emt 0:03:09]} Kf7 {[%emt 0:02:52]} ({Much weaker is} 47... Qxb3 $6 48. Be7 $16) ({Better is} 47... Kh8 $11) 48. Qh4 {[%emt 0:02:48]} Rh8 $2 {[%emt 0:06:42]} (48... Qxb3 $14 49. Qh5+ g6 50. Qxh6 Qd1+ 51. Kh2 Qh5) 49. f4 {[%emt 0:01:07]} Qc7 {[%emt 0:01:28]} (49... Qc8 $142 50. Bd4 (50. fxe5 Qxc5+ 51. Kh1 h5 $16) 50... h5) 50. Bd4 {[%emt 0:02:35]} Nc6 {[%emt 0:00:59] [#]} 51. Qh5+ {[%emt 0:00:22]} (51. Rxg7+ $142 $1 {[%mdl 512]} Kxg7 52. Qxf6+ Kg8 53. Qxh8+ Kf7 54. Qh7+ Ke6 55. Qxc7 Nxd4 56. cxd4) 51... Ke6 {[%emt 0:00:17]} 52. c4 {[%emt 0:03:04]} dxc4 {[%emt 0:00:41]} 53. bxc4 {[%emt 0:01:05]} Nb4 {[%emt 0:00:51]} 54. Bc5 {[%emt 0:01:08]} Qxf4 {[%emt 0:00:35]} 55. Bxb4 {[%emt 0:01:29]} Qd4+ {[%emt 0:00:26]} 56. Kh2 {[%emt 0:00:05]} axb4 {[%emt 0:00:06]} 57. Qb5 {[%emt 0:00:55]} Qd6 {[%emt 0:00:37]} 58. c5 {[%emt 0:00:16]} Qf4 {[%emt 0:00:48]} 59. Qc6+ {[%emt 0:00:28]} Ke7 {[%emt 0:00:28]} 60. Qb7+ {[%emt 0:00:24]} Ke6 {[%emt 0:00:09]} 61. c6 {[%emt 0:00:40]} Kd6 {[%emt 0:00:53]} 62. Qd7+ {[%emt 0:00:49]} Ke5 {[%emt 0:00:27]} 63. c7 {[%emt 0:00:29]} Qc1 {[%emt 0:00:18]} 64. Rf3 {[%emt 0:00:40]} Ra8 {[%emt 0:00:49]} 65. Rf5+ {[%emt 0:00:19]} Ke4 {[%emt 0:00:11]} 66. Qd5+ {[%emt 0:00:08]} Ke3 {[%emt 0:00:04]} 67. Rf3+ {[%emt 0:00:10]} Ke2 {[%emt 0:00:08]} 68. Qd3+ {[%emt 0:00:15]} 1-0

[Event "Satka Autumn 2018"]
[Site "Satka"]
[Date "2018.09.16"]
[Round "6"]
[White "Charochkina, Daria"]
[Black "Semenova, Elena"]
[Result "1/2-1/2"]
[ECO "A18"]
[WhiteElo "2336"]
[BlackElo "2219"]
[Annotator "ChessBase"]
[PlyCount "129"]
[EventDate "2018.09.11"]
[EventType "swiss"]
[EventCountry "RUS"]
[SourceTitle "playchess.com"]
[Source "ChessBase"]
[SourceQuality "1"]
[TimeControl "40/5400+30:1800+30"]

1. c4 {[%emt 0:00:14]} Nf6 {[%emt 0:00:02]} 2. Nc3 {[%emt 0:00:09]} e6 {[%emt 0:00:22]} 3. e4 {[%emt 0:00:07]} d5 {[%emt 0:00:04]} 4. e5 {[%emt 0:00:07]} d4 {[%emt 0:00:10]} 5. exf6 {[%emt 0:00:05]} dxc3 {[%emt 0:00:04]} 6. bxc3 {[%emt 0:00:04]} Qxf6 {[%emt 0:00:12]} 7. Nf3 {[%emt 0:00:04]} b6 {[%emt 0:00:31]} 8. g3 {[%emt 0:05:07]} Bb7 {[%emt 0:01:51]} 9. Bg2 {[%emt 0:02:33]} Bd6 {[%emt 0:02:19]} 10. d4 {[%emt 0:00:53]} h6 {[%emt 0:00:13]} 11. O-O {[%emt 0:01:07]} O-O {[%emt 0:03:04]} 12. Qd3 {[%emt 0:19:15]} Re8 {[%emt 0:14:03]} 13. Rb1 {[%emt 0:15:40]} Qf5 {[%emt 0:10:45]} 14. Qxf5 {[%emt 0:18:40]} exf5 {[%emt 0:00:02]} 15. Nh4 {[%emt 0:00:04]} Be4 {[%emt 0:18:27]} 16. Bxe4 {[%emt 0:00:38]} fxe4 {[%emt 0:02:51]} 17. Nf5 {[%emt 0:00:11]} Nc6 {[%emt 0:02:54]} 18. Re1 {[%emt 0:02:30]} Na5 {[%emt 0:05:13]} 19. c5 {[%emt 0:04:47]} bxc5 {[%emt 0:04:15]} 20. Rb5 {[%emt 0:00:05]} Nc6 {[%emt 0:08:11]} 21. dxc5 {[%emt 0:00:08]} Bf8 {[%emt 0:03:25]} 22. Nd4 {[%emt 0:07:17]} Ne5 {[%emt 0:02:25]} 23. c6 {[%emt 0:00:03]} Bc5 {[%emt 0:03:28]} 24. Rd1 {[%emt 0:05:56]} Bb6 {[%emt 0:01:16]} 25. Bf4 {[%emt 0:02:16]} Nd3 {[%emt 0:02:38]} 26. Be3 {[%emt 0:00:03]} Rad8 {[%emt 0:01:03]} 27. Nf5 {[%emt 0:02:07]} Bxe3 {[%emt 0:07:35]} 28. fxe3 {[%emt 0:00:20]} Ne5 {[%emt 0:02:53]} 29. Rxd8 {[%emt 0:05:28]} Nf3+ {[%emt 0:00:01]} 30. Kf2 {[%emt 0:00:11]} Rxd8 {[%emt 0:00:01]} 31. Nd4 {[%emt 0:01:50]} Rd6 {[%emt 0:00:06]} 32. Rc5 {[%emt 0:03:45]} Kf8 {[%emt 0:01:11]} 33. Ke2 {[%emt 0:01:20]} g6 {[%emt 0:00:39]} 34. Nxf3 {[%emt 0:00:34]} exf3+ {[%emt 0:00:04]} 35. Kxf3 {[%emt 0:00:01]} Ke7 {[%emt 0:01:14]} 36. h4 {[%emt 0:00:31]} h5 {[%emt 0:01:09]} 37. e4 {[%emt 0:01:53]} Rd3+ {[%emt 0:01:23]} 38. Kf4 {[%emt 0:00:24]} Kd6 {[%emt 0:00:43]} 39. Rc4 {[%emt 0:00:27]} Ke6 {[%emt 0:00:39]} 40. Rc5 {[%emt 0:00:00]} Kd6 {[%emt 0:00:00]} 41. Rc4 {[%emt 0:06:44]} Ke6 {[%emt 0:04:55]} 42. a4 {[%emt 0:00:24]} f6 {[%emt 0:11:18]} 43. Rc5 {[%emt 0:00:09]} Kd6 {[%emt 0:00:46]} 44. Ra5 {[%emt 0:07:45]} Rxc3 {[%emt 0:00:04]} 45. Rxa7 {[%emt 0:00:03]} Rxc6 {[%emt 0:01:16]} 46. Ra8 {[%emt 0:00:04]} Ke6 {[%emt 0:02:11]} 47. a5 {[%emt 0:00:14]} Rc3 {[%emt 0:01:56]} 48. a6 {[%emt 0:03:04]} Ra3 {[%emt 0:01:27]} 49. Rc8 {[%emt 0:00:04]} g5+ {[%emt 0:04:39]} 50. hxg5 {[%emt 0:00:35]} fxg5+ {[%emt 0:00:01]} 51. Kxg5 {[%emt 0:00:05]} Rxg3+ {[%emt 0:00:12]} 52. Kf4 {[%emt 0:01:12]} Ra3 {[%emt 0:00:01]} 53. Rh8 {[%emt 0:00:08]} Kf7 {[%emt 0:01:50]} 54. Kf5 {[%emt 0:08:00]} Rxa6 {[%emt 0:00:44]} 55. Rh7+ {[%emt 0:00:08]} Ke8 {[%emt 0:00:45]} 56. Rxh5 {[%emt 0:00:07]} c5 {[%emt 0:00:55]} 57. e5 {[%emt 0:02:00]} c4 {[%emt 0:00:35]} 58. Rh8+ {[%emt 0:00:05]} Kd7 {[%emt 0:00:30]} 59. Rh7+ {[%emt 0:00:10]} Ke8 {[%emt 0:01:38]} 60. Rc7 {[%emt 0:00:26]} Rb6 {[%emt 0:01:16]} 61. Rxc4 {[%emt 0:04:06]} Ra6 {[%emt 0:00:10]} 62. Rh4 {[%emt 0:05:29]} Ke7 {[%emt 0:00:08]} 63. Rh8 {[%emt 0:00:09]} Rb6 {[%emt 0:00:13]} 64. Ra8 {[%emt 0:01:29]} Rh6 {[%emt 0:00:12]} 65. Ke4 1/2-1/2

[Event "Satka Autumn 2018"]
[Site "Satka"]
[Date "2018.09.16"]
[Round "6"]
[White "Makarenko, Alexandra"]
[Black "Stroganova, Karina"]
[Result "1-0"]
[ECO "B01"]
[WhiteElo "2247"]
[BlackElo "1711"]
[Annotator "NA"]
[PlyCount "97"]
[EventDate "2018.09.11"]
[EventType "swiss"]
[EventCountry "RUS"]
[SourceTitle "playchess.com"]
[Source "ChessBase"]
[SourceQuality "1"]
[TimeControl "40/5400+30:1800+30"]

{[%evp 8,85,68,25,79,0,61,59,45,45,47,36,59,18,32,32,52,56,71,54,46,55,147,121,141,110,126,111,133,83,277,123,32767,32767,410,429,444,32767,32767,32767,32767,32767,32767,32767,32767,32767,32767,32767,32767,32767,32767,32767,32767,32767,32767,32767,32767,32767,32767,32767,512,32767,508,32767,32767,143,495,490,32767,32767,32767,32767,32767,32767,32767,32767,947,1360,1143,1398]} 1. e4 {[%emt 0:00:00]} d5 {[%emt 0:00:00]} 2. exd5 {[%emt 0:00:00]} Qxd5 {[%emt 0:00:00]} 3. Nc3 {[%emt 0:00:00]} Qd6 {[%emt 0:00:04]} 4. d4 {[%emt 0:00:39]} c6 $1 {[%emt 0:00:13]} 5. Ne4 {[%emt 0:06:34]} Qd5 {[%emt 0:02:20]} 6. Nc3 {[%emt 0:05:46]} Qd6 {[%emt 0:00:19]} 7. Nf3 {[%emt 0:00:17]} Nf6 {[%emt 0:00:09]} 8. Ne5 {[%emt 0:00:53]} Nbd7 {[%emt 0:01:27] B01: Scandinavian Defence} 9. f4 {[%emt 0:01:04]} Nb6 {[%emt 0:01:46]} 10. g4 {[%emt 0:04:03]} g6 {[%emt 0:04:34]} 11. g5 {[%emt 0:09:45] LiveBook: 5 Games} Nfd5 {[%emt 0:02:28]} 12. Ne4 {[%emt 0:00:49]} Qd8 {[%emt 0:01:45]} 13. Qe2 $146 {[%emt 0:06:11]} Bg7 $1 {[%emt 0:00:55]} 14. c4 {[%emt 0:01:02]} Bxe5 {[%emt 0:02:36]} (14... Nc7 $11 15. c5 Ne6 16. cxb6 Nxd4 {½-½ (39) Shirov,A (2699)-Nisipeanu,L (2693) Foros 2007}) 15. fxe5 {[%emt 0:03:49]} Nc7 {[%emt 0:00:31]} 16. Be3 {[%emt 0:00:42]} Bf5 {[%emt 0:00:21]} 17. Bg2 {[%emt 0:02:46]} Ne6 {[%emt 0:01:06]} 18. Rd1 {[%emt 0:04:25]} (18. O-O-O $142) 18... Qd7 $2 {[%emt 0:05:55] [#]} (18... Ng7 $16) 19. O-O {[%emt 0:10:31]} (19. d5 $1 $18 {[%mdl 512] is the precise move to win.}) 19... O-O-O {[%emt 0:01:38]} 20. d5 {[%emt 0:03:47]} cxd5 {[%emt 0:07:26]} 21. cxd5 {[%emt 0:00:08]} Nxd5 {[%emt 0:08:32]} 22. Rxd5 {[%emt 0:01:08]} Qxd5 {[%emt 0:00:55]} 23. Nd6+ {[%emt 0:00:17]} Rxd6 {[%emt 0:00:06]} 24. Bxd5 {[%emt 0:00:04]} Rxd5 {[%emt 0:00:05]} 25. Qc4+ {[%emt 0:00:13]} Nc7 {[%emt 0:00:12]} 26. Rc1 {[%emt 0:01:13]} Rd7 {[%emt 0:00:14]} 27. Bxa7 {[%emt 0:00:22]} Be6 {[%emt 0:00:53]} 28. Qc3 {[%emt 0:00:55]} Rhd8 {[%emt 0:00:40]} 29. Bb6 {[%emt 0:19:35]} Rd1+ {[%emt 0:00:24]} 30. Rxd1 {[%emt 0:00:03]} Rxd1+ {[%emt 0:00:04]} 31. Kf2 {[%emt 0:00:03]} Rd7 {[%emt 0:00:17]} 32. a4 {[%emt 0:01:29]} Kb8 {[%emt 0:00:36]} 33. Qa5 {[%emt 0:01:30]} Na6 $2 {[%emt 0:02:56]} (33... Kc8 34. h4 Rd5) 34. b4 {[%emt 0:01:26]} Nc7 {[%emt 0:02:15]} 35. b5 {[%emt 0:00:24]} Bd5 {[%emt 0:01:04]} 36. Qa7+ $2 {[%emt 0:09:02]} (36. Ke3 $18) 36... Kc8 {[%emt 0:00:06]} 37. Ba5 {[%emt 0:00:54]} Bh1 {[%emt 0:02:31]} 38. Bb6 {[%emt 0:05:17]} Bd5 {[%emt 0:00:16]} 39. a5 {[%emt 0:01:08]} e6 {[%emt 0:02:39]} 40. Bc5 {[%emt 0:00:00]} Rd8 {[%emt 0:00:00]} 41. Be7 {[%emt 0:04:54]} Re8 {[%emt 0:02:24]} 42. Qc5 {[%emt 0:03:00]} Kd7 {[%emt 0:01:07]} 43. Bd6 $18 {[%emt 0:01:37]} Rc8 {[%emt 0:00:34]} 44. Bxc7 {[%emt 0:01:32]} Rxc7 {[%emt 0:00:19]} 45. Qd6+ {[%emt 0:00:04]} Kc8 {[%emt 0:00:06]} 46. Qf8+ {[%emt 0:00:21]} Kd7 {[%emt 0:00:05]} 47. Qxf7+ {[%emt 0:00:06]} Kd8 {[%emt 0:00:10]} 48. Qg8+ {[%emt 0:00:15]} Kd7 {[%emt 0:00:09]} 49. Qxh7+ {[%emt 0:00:05]} 1-0

[Event "Satka Autumn 2018"]
[Site "Satka"]
[Date "2018.09.16"]
[Round "6"]
[White "Mukhina, Jana"]
[Black "Svetlova, Ksenia"]
[Result "1-0"]
[ECO "B76"]
[WhiteElo "2072"]
[BlackElo "1696"]
[Annotator "NA RC"]
[PlyCount "45"]
[EventDate "2018.09.11"]
[EventType "swiss"]
[EventCountry "RUS"]
[SourceTitle "playchess.com"]
[Source "ChessBase"]
[SourceQuality "1"]
[TimeControl "40/5400+30:1800+30"]

{[%evp 8,44,18,32767,32767,32767,32767,52,76,81,72,37,94,0,104,109,319,300,420,375,379,412,385,32767,32767,32767,32767,32767,32767,32767,32767,428,32767,32767,32767,32767,32767,32767,29998]} 1. e4 {[%emt 0:00:00]} c5 {[%emt 0:00:00]} 2. Nf3 {[%emt 0:00:00]} d6 {[%emt 0:00:00]} 3. d4 {[%emt 0:00:00]} cxd4 {[%emt 0:00:00]} 4. Nxd4 {[%emt 0:00:00]} Nf6 {[%emt 0:00:00]} 5. Nc3 {[%emt 0:00:06]} g6 {[%emt 0:00:00]} 6. Be3 {[%emt 0:00:14]} Bg7 {[%emt 0:00:00]} 7. f3 {[%emt 0:00:10]} O-O {[%emt 0:00:00] [#]} 8. Qd2 $1 {[%emt 0:00:23]} Nc6 {[%emt 0:00:00]} 9. g4 {[%emt 0:00:19]} Ne5 {[%emt 0:04:53] LiveBook: 8 Games B76: Sicilian Dragon: Yugoslav Attack, 9 g4 and 9 0-0-0} (9... Be6 10. Nxe6 fxe6 11. O-O-O Ne5 12. Be2 Qc8 13. h4 Nfd7 14. h5 Nc4 15. Bxc4 Qxc4 16. hxg6 hxg6 17. f4 Bxc3 18. bxc3 Nf6 19. Bd4 e5 20. fxe5 dxe5 {1-0 (41) Cornette,M (2611)-Jones,G (2640) chess.com INT 2018}) 10. h4 {[%emt 0:02:30]} (10. O-O-O $16) 10... Be6 {[%emt 0:01:18]} (10... d5 $1 $11 11. O-O-O dxe4) 11. h5 {[%emt 0:15:40]} Nfxg4 $2 $146 {[%emt 0:33:45]} (11... Rc8 $16) ({Predecessor:} 11... Nxf3+ 12. Nxf3 Bxg4 13. hxg6 Bxf3 14. gxh7+ Kh8 15. Rg1 Qa5 16. Rg5 Qd8 17. Bh3 {0-1 (33) Flores Chico,J (2052)-Haarr,J (2157) Caleta 2010}) 12. fxg4 {[%emt 0:01:24]} Nxg4 {[%emt 0:00:07]} 13. Nxe6 {[%emt 0:02:15]} fxe6 {[%emt 0:00:06]} 14. hxg6 {[%emt 0:03:12]} Nxe3 {[%emt 0:02:37]} 15. gxh7+ {[%emt 0:04:09]} Kh8 {[%emt 0:00:03]} 16. Qxe3 {[%emt 0:00:06]} Qa5 {[%emt 0:00:25]} 17. O-O-O {[%emt 0:26:48]} Rac8 {[%emt 0:01:08]} 18. Rh3 {[%emt 0:05:47]} Rc5 {[%emt 0:03:08]} 19. Rg3 {[%emt 0:11:10]} Rfc8 {[%emt 0:15:36]} 20. Rd3 {[%emt 0:00:38]} b5 {[%emt 0:01:11]} 21. Qg1 {[%emt 0:02:21]} Bh6+ {[%emt 0:05:00]} 22. Kb1 {[%emt 0:00:12]} b4 {[%emt 0:06:40]} 23. Rg8+ {[%emt 0:00:19]} 1-0